[Event "Titled Tuesday Blitz January 10 Late 2023"]
[White "Mosadeghpour, Masoud"]
[Black "Naroditsky, Daniel"]
[WhiteFideId "12519278"]
[BlackFideId "2026961"]
[WhiteElo "2472"]
[BlackElo "2618"]
[Result "0-1"]
[Round "09"]
[TimeControl "180+2"]
[Date "2023.01.10"]
[WhiteClock "0:00:09"]
[BlackClock "0:00:02"]

1. e4 {[%clk 0:00:00]}  c6 {[%clk 0:00:00]} 2. d4 {[%clk 0:03:00]}  d5 {[%clk 0:02:59]} 3. Nd2 {[%clk 0:03:01]}  dxe4 {[%clk 0:03:00]} 4. Nxe4 {[%clk 0:03:01]}  Nf6 {[%clk 0:03:00]} 5. Nxf6+ {[%clk 0:03:01]}  gxf6 {[%clk 0:02:58]} 6. Bc4 {[%clk 0:03:02]}  Bf5 {[%clk 0:02:58]} 7. Nf3 {[%clk 0:03:02]}  e6 {[%clk 0:02:54]} 8. O-O {[%clk 0:03:02]}  Bd6 {[%clk 0:02:55]} 9. Nh4 {[%clk 0:03:02]}  Bg6 {[%clk 0:02:50]} 10. Re1 {[%clk 0:03:01]}  Qc7 {[%clk 0:02:50]} 11. g3 {[%clk 0:02:58]}  Nd7 {[%clk 0:02:50]} 12. Qf3 {[%clk 0:02:57]}  O-O-O {[%clk 0:02:50]} 13. c3 {[%clk 0:02:54]}  Kb8 {[%clk 0:02:49]} 14. Bh6 {[%clk 0:02:54]}  Rhg8 {[%clk 0:02:42]} 15. b4 {[%clk 0:02:52]}  f5 {[%clk 0:02:36]} 16. a4 {[%clk 0:02:51]}  Nf6 {[%clk 0:02:31]} 17. b5 {[%clk 0:02:49]}  Bh5 {[%clk 0:02:24]} 18. Qd3 {[%clk 0:02:47]}  f4 {[%clk 0:02:10]} 19. Ng2 {[%clk 0:02:44]}  Rg6 {[%clk 0:01:53]} 20. Bxf4 {[%clk 0:02:39]}  Bxf4 {[%clk 0:01:31]} 21. Nxf4 {[%clk 0:02:36]}  Rg5 {[%clk 0:01:29]} 22. Qe3 {[%clk 0:02:36]}  Ng4 {[%clk 0:01:11]} 23. Qc1 {[%clk 0:02:31]}  cxb5 {[%clk 0:01:08]} 24. Bxe6 {[%clk 0:02:30]}  fxe6 {[%clk 0:01:05]} 25. Nxe6 {[%clk 0:02:28]}  Qf7 {[%clk 0:00:56]} 26. f4 {[%clk 0:02:28]}  Rgg8 {[%clk 0:00:57]} 27. Nxd8 {[%clk 0:01:58]}  Rxd8 {[%clk 0:00:48]} 28. axb5 {[%clk 0:01:58]}  Rd7 {[%clk 0:00:49]} 29. Qa3 {[%clk 0:01:57]}  b6 {[%clk 0:00:29]} 30. Qa2 {[%clk 0:01:56]}  Nf6 {[%clk 0:00:30]} 31. Re6 {[%clk 0:01:52]}  Nd5 {[%clk 0:00:25]} 32. Re5 {[%clk 0:01:45]}  Nxc3 {[%clk 0:00:19]} 33. Qd2 {[%clk 0:01:34]}  Nd5 {[%clk 0:00:16]} 34. Rae1 {[%clk 0:01:21]}  Bg6 {[%clk 0:00:16]} 35. Qa2 {[%clk 0:01:19]}  Qg8 {[%clk 0:00:13]} 36. Qa3 {[%clk 0:01:10]}  Bf7 {[%clk 0:00:10]} 37. Qf3 {[%clk 0:01:00]}  Qd8 {[%clk 0:00:10]} 38. f5 {[%clk 0:00:58]}  Qc7 {[%clk 0:00:10]} 39. f6 {[%clk 0:00:55]}  Qc4 {[%clk 0:00:09]} 40. Qg4 {[%clk 0:00:53]}  Qxb5 {[%clk 0:00:09]} 41. Qg7 {[%clk 0:00:49]}  Qc6 {[%clk 0:00:08]} 42. Qxh7 {[%clk 0:00:38]}  Qxf6 {[%clk 0:00:08]} 43. Rf1 {[%clk 0:00:34]}  Qg6 {[%clk 0:00:07]} 44. Rxf7 {[%clk 0:00:33]}  Qxf7 {[%clk 0:00:05]} 45. Qxf7 {[%clk 0:00:12]}  Rxf7 {[%clk 0:00:02]} 46. Rxd5 {[%clk 0:00:12]}  a5 {[%clk 0:00:03]} 47. h4 {[%clk 0:00:13]}  a4 {[%clk 0:00:03]} 48. Rb5 {[%clk 0:00:11]}  a3 {[%clk 0:00:04]} 49. Rb3 {[%clk 0:00:10]}  a2 {[%clk 0:00:02]} 50. Ra3 {[%clk 0:00:09]}  Ra7 {[%clk 0:00:02]} 0-1


[Site "https://www.chess.com"]

[Event "Titled Tuesday Blitz January 10 Late 2023"]
[White "Duda, Jan-Krzysztof"]
[Black "Zakhartsov, Vladimir"]
[WhiteFideId "1170546"]
[BlackFideId "4145097"]
[WhiteElo "2724"]
[BlackElo "2552"]
[Result "1-0"]
[Round "09"]
[TimeControl "180+2"]
[Date "2023.01.10"]
[WhiteClock "0:00:09"]
[BlackClock "0:00:01"]

1. d4 {[%clk 0:00:00]}  Nf6 {[%clk 0:00:00]} 2. Nc3 {[%clk 0:03:00]}  d5 {[%clk 0:02:56]} 3. Bf4 {[%clk 0:03:00]}  a6 {[%clk 0:02:56]} 4. e3 {[%clk 0:03:01]}  b5 {[%clk 0:02:55]} 5. Bd3 {[%clk 0:03:00]}  Bb7 {[%clk 0:02:55]} 6. Nce2 {[%clk 0:02:54]}  e6 {[%clk 0:02:43]} 7. Nf3 {[%clk 0:02:53]}  c5 {[%clk 0:02:41]} 8. c3 {[%clk 0:02:51]}  Nc6 {[%clk 0:02:39]} 9. O-O {[%clk 0:02:51]}  Be7 {[%clk 0:02:37]} 10. Ng3 {[%clk 0:02:49]}  O-O {[%clk 0:02:28]} 11. h4 {[%clk 0:02:42]}  Bd6 {[%clk 0:02:22]} 12. h5 {[%clk 0:02:42]}  h6 {[%clk 0:02:15]} 13. Re1 {[%clk 0:02:35]}  Qc7 {[%clk 0:02:11]} 14. Bxd6 {[%clk 0:02:33]}  Qxd6 {[%clk 0:02:10]} 15. Nh4 {[%clk 0:02:24]}  Qe7 {[%clk 0:02:11]} 16. f4 {[%clk 0:01:53]}  b4 {[%clk 0:01:54]} 17. Nf3 {[%clk 0:01:48]}  Nd7 {[%clk 0:01:48]} 18. Rb1 {[%clk 0:01:45]}  a5 {[%clk 0:01:42]} 19. Nh1 {[%clk 0:01:36]}  Ba6 {[%clk 0:01:42]} 20. Bc2 {[%clk 0:01:25]}  bxc3 {[%clk 0:01:40]} 21. bxc3 {[%clk 0:01:25]}  cxd4 {[%clk 0:01:37]} 22. exd4 {[%clk 0:01:26]}  Nf6 {[%clk 0:01:37]} 23. Ng3 {[%clk 0:01:18]}  Rfc8 {[%clk 0:01:33]} 24. Ne5 {[%clk 0:01:13]}  Nxe5 {[%clk 0:01:27]} 25. fxe5 {[%clk 0:01:10]}  Rxc3 {[%clk 0:01:07]} 26. exf6 {[%clk 0:01:11]}  Qxf6 {[%clk 0:01:03]} 27. Ne2 {[%clk 0:01:10]}  Re3 {[%clk 0:01:04]} 28. Rb3 {[%clk 0:00:47]}  Rxe2 {[%clk 0:01:03]} 29. Rxe2 {[%clk 0:00:38]}  Bxe2 {[%clk 0:00:50]} 30. Qxe2 {[%clk 0:00:39]}  Qxd4+ {[%clk 0:00:50]} 31. Qe3 {[%clk 0:00:40]}  Qxe3+ {[%clk 0:00:50]} 32. Rxe3 {[%clk 0:00:41]}  Rc8 {[%clk 0:00:43]} 33. Ba4 {[%clk 0:00:42]}  Kf8 {[%clk 0:00:43]} 34. Rb3 {[%clk 0:00:37]}  Rc4 {[%clk 0:00:41]} 35. Rb8+ {[%clk 0:00:35]}  Ke7 {[%clk 0:00:35]} 36. Bb5 {[%clk 0:00:29]}  Rc5 {[%clk 0:00:32]} 37. Rb7+ {[%clk 0:00:24]}  Kf8 {[%clk 0:00:21]} 38. a4 {[%clk 0:00:23]}  d4 {[%clk 0:00:16]} 39. Rd7 {[%clk 0:00:23]}  e5 {[%clk 0:00:16]} 40. g4 {[%clk 0:00:20]}  Rc3 {[%clk 0:00:09]} 41. Kf2 {[%clk 0:00:18]}  g6 {[%clk 0:00:03]} 42. hxg6 {[%clk 0:00:18]}  fxg6 {[%clk 0:00:02]} 43. Rh7 {[%clk 0:00:09]}  Kg8 {[%clk 0:00:03]} 44. Rxh6 {[%clk 0:00:10]}  Kg7 {[%clk 0:00:02]} 45. g5 {[%clk 0:00:09]}  e4 {[%clk 0:00:03]} 46. Rh4 {[%clk 0:00:09]}  Rf3+ {[%clk 0:00:03]} 47. Ke1 {[%clk 0:00:09]}  Re3+ {[%clk 0:00:03]} 48. Kd2 {[%clk 0:00:08]}  Ra3 {[%clk 0:00:02]} 49. Rxe4 {[%clk 0:00:09]}  Rg3 {[%clk 0:00:01]} 50. Re5 {[%clk 0:00:08]}  Rg4 {[%clk 0:00:01]} 51. Kd3 {[%clk 0:00:08]}  Kf7 {[%clk 0:00:01]} 52. Bc6 {[%clk 0:00:08]}  Kg7 {[%clk 0:00:02]} 53. Be4 {[%clk 0:00:08]}  Kf7 {[%clk 0:00:01]} 54. Kxd4 {[%clk 0:00:08]}  Rg3 {[%clk 0:00:01]} 55. Rxa5 {[%clk 0:00:09]}  Rg4 {[%clk 0:00:01]} 56. Re5 {[%clk 0:00:09]} 1-0


[Site "https://www.chess.com"]

[Event "Titled Tuesday Blitz January 10 Late 2023"]
[White "Zhigalko, Sergei"]
[Black "Sarana, Alexey"]
[WhiteFideId "13502956"]
[BlackFideId "24133795"]
[WhiteElo "2572"]
[BlackElo "2685"]
[Result "1/2-1/2"]
[Round "09"]
[TimeControl "180+2"]
[Date "2023.01.10"]
[WhiteClock "0:00:05"]
[BlackClock "0:00:02"]

1. e4 {[%clk 0:00:00]}  e5 {[%clk 0:00:00]} 2. Nf3 {[%clk 0:03:00]}  Nc6 {[%clk 0:02:59]} 3. Bb5 {[%clk 0:03:01]}  a6 {[%clk 0:03:00]} 4. Ba4 {[%clk 0:03:00]}  Bc5 {[%clk 0:02:59]} 5. O-O {[%clk 0:03:01]}  Nge7 {[%clk 0:03:00]} 6. c3 {[%clk 0:03:01]}  O-O {[%clk 0:02:59]} 7. d4 {[%clk 0:03:00]}  Ba7 {[%clk 0:02:57]} 8. d5 {[%clk 0:03:00]}  b5 {[%clk 0:02:52]} 9. Bc2 {[%clk 0:02:44]}  Na5 {[%clk 0:02:52]} 10. Nxe5 {[%clk 0:02:43]}  d6 {[%clk 0:02:52]} 11. Nd3 {[%clk 0:02:42]}  Ng6 {[%clk 0:02:53]} 12. Nd2 {[%clk 0:02:32]}  Re8 {[%clk 0:02:53]} 13. Qf3 {[%clk 0:02:24]}  Qh4 {[%clk 0:02:53]} 14. Qg3 {[%clk 0:02:20]}  Qh5 {[%clk 0:02:51]} 15. Nf4 {[%clk 0:02:09]}  Nxf4 {[%clk 0:02:50]} 16. Qxf4 {[%clk 0:01:59]}  Bd7 {[%clk 0:02:45]} 17. Nf3 {[%clk 0:02:00]}  Nc4 {[%clk 0:02:36]} 18. b3 {[%clk 0:01:56]}  Ne5 {[%clk 0:02:33]} 19. Nxe5 {[%clk 0:01:52]}  Rxe5 {[%clk 0:02:33]} 20. Be3 {[%clk 0:01:52]}  Qe2 {[%clk 0:02:32]} 21. Bxa7 {[%clk 0:01:46]}  Rxa7 {[%clk 0:02:01]} 22. Rac1 {[%clk 0:01:37]}  Qh5 {[%clk 0:01:59]} 23. Qe3 {[%clk 0:01:30]}  Ra8 {[%clk 0:01:54]} 24. f4 {[%clk 0:01:27]}  Re7 {[%clk 0:01:47]} 25. Rce1 {[%clk 0:01:27]}  Rae8 {[%clk 0:01:45]} 26. Qd4 {[%clk 0:01:15]}  f6 {[%clk 0:01:44]} 27. c4 {[%clk 0:01:15]}  Qg6 {[%clk 0:01:43]} 28. c5 {[%clk 0:01:15]}  Qh5 {[%clk 0:01:35]} 29. b4 {[%clk 0:00:56]}  Bf5 {[%clk 0:01:23]} 30. Re3 {[%clk 0:00:53]}  Bc8 {[%clk 0:01:17]} 31. cxd6 {[%clk 0:00:36]}  cxd6 {[%clk 0:01:14]} 32. Qb6 {[%clk 0:00:28]}  Rd7 {[%clk 0:01:14]} 33. a4 {[%clk 0:00:29]}  Qf7 {[%clk 0:01:07]} 34. axb5 {[%clk 0:00:28]}  axb5 {[%clk 0:01:03]} 35. Bd3 {[%clk 0:00:27]}  Qe7 {[%clk 0:01:03]} 36. Bxb5 {[%clk 0:00:26]}  Rb7 {[%clk 0:01:00]} 37. Qc6 {[%clk 0:00:11]}  Rd8 {[%clk 0:00:59]} 38. Rc1 {[%clk 0:00:12]}  Rb8 {[%clk 0:00:55]} 39. Be2 {[%clk 0:00:10]}  Rxb4 {[%clk 0:00:50]} 40. Qc7 {[%clk 0:00:05]}  Bd7 {[%clk 0:00:48]} 41. Bf3 {[%clk 0:00:04]}  Rc8 {[%clk 0:00:44]} 42. Qxc8+ {[%clk 0:00:03]}  Bxc8 {[%clk 0:00:36]} 43. Rxc8+ {[%clk 0:00:04]}  Kf7 {[%clk 0:00:37]} 44. h3 {[%clk 0:00:04]}  Qa7 {[%clk 0:00:38]} 45. Rc3 {[%clk 0:00:04]}  Kg6 {[%clk 0:00:38]} 46. Kh2 {[%clk 0:00:04]}  Qd4 {[%clk 0:00:28]} 47. Bg4 {[%clk 0:00:05]}  h5 {[%clk 0:00:27]} 48. Bf5+ {[%clk 0:00:05]}  Kh6 {[%clk 0:00:24]} 49. Rg3 {[%clk 0:00:05]}  g5 {[%clk 0:00:25]} 50. fxg5+ {[%clk 0:00:04]}  fxg5 {[%clk 0:00:26]} 51. Rc8 {[%clk 0:00:04]}  h4 {[%clk 0:00:26]} 52. Rgc3 {[%clk 0:00:02]}  Qe5+ {[%clk 0:00:19]} 53. Kh1 {[%clk 0:00:02]}  Rb1+ {[%clk 0:00:18]} 54. Rc1 {[%clk 0:00:02]}  Rxc1+ {[%clk 0:00:18]} 55. Rxc1 {[%clk 0:00:03]}  Kg7 {[%clk 0:00:12]} 56. Rf1 {[%clk 0:00:02]}  Qd4 {[%clk 0:00:13]} 57. Rf3 {[%clk 0:00:02]}  Qd1+ {[%clk 0:00:11]} 58. Kh2 {[%clk 0:00:03]}  Qe1 {[%clk 0:00:11]} 59. Rd3 {[%clk 0:00:03]}  Kf6 {[%clk 0:00:12]} 60. Rf3 {[%clk 0:00:02]}  Ke5 {[%clk 0:00:11]} 61. Rd3 {[%clk 0:00:02]}  Qc1 {[%clk 0:00:11]} 62. Rf3 {[%clk 0:00:02]}  Kd4 {[%clk 0:00:11]} 63. Bg6 {[%clk 0:00:03]}  Qe1 {[%clk 0:00:11]} 64. Bf5 {[%clk 0:00:03]}  Qe2 {[%clk 0:00:07]} 65. Rb3 {[%clk 0:00:03]}  Qd2 {[%clk 0:00:06]} 66. Rf3 {[%clk 0:00:03]}  Qc1 {[%clk 0:00:02]} 67. Bg6 {[%clk 0:00:03]}  Qc8 {[%clk 0:00:02]} 68. Bf5 {[%clk 0:00:03]}  Qh8 {[%clk 0:00:03]} 69. Rb3 {[%clk 0:00:04]}  Qg7 {[%clk 0:00:03]} 70. Kh1 {[%clk 0:00:04]}  g4 {[%clk 0:00:03]} 71. Bxg4 {[%clk 0:00:04]}  Kxe4 {[%clk 0:00:03]} 72. Bf3+ {[%clk 0:00:03]}  Kf4 {[%clk 0:00:03]} 73. Rb4+ {[%clk 0:00:04]}  Ke3 {[%clk 0:00:03]} 74. Rb3+ {[%clk 0:00:04]}  Kf2 {[%clk 0:00:03]} 75. Rb1 {[%clk 0:00:04]}  Qd4 {[%clk 0:00:04]} 76. Rd1 {[%clk 0:00:04]}  Qc3 {[%clk 0:00:03]} 77. Rb1 {[%clk 0:00:04]}  Kg3 {[%clk 0:00:03]} 78. Rf1 {[%clk 0:00:04]}  Qd3 {[%clk 0:00:03]} 79. Re1 {[%clk 0:00:04]}  Kf2 {[%clk 0:00:03]} 80. Rd1 {[%clk 0:00:04]}  Qc2 {[%clk 0:00:02]} 81. Rg1 {[%clk 0:00:04]}  Qb2 {[%clk 0:00:03]} 82. Rd1 {[%clk 0:00:03]}  Qa2 {[%clk 0:00:03]} 83. Rg1 {[%clk 0:00:04]}  Qd2 {[%clk 0:00:03]} 84. Rd1 {[%clk 0:00:04]}  Qc2 {[%clk 0:00:04]} 85. Rg1 {[%clk 0:00:04]}  Ke3 {[%clk 0:00:04]} 86. Re1+ {[%clk 0:00:05]}  Kf4 {[%clk 0:00:04]} 87. Re4+ {[%clk 0:00:05]}  Kg3 {[%clk 0:00:05]} 88. Re1 {[%clk 0:00:05]}  Qd2 {[%clk 0:00:05]} 89. Rf1 {[%clk 0:00:05]}  Qd3 {[%clk 0:00:05]} 90. Rg1 {[%clk 0:00:05]}  Qc4 {[%clk 0:00:05]} 91. Rd1 {[%clk 0:00:05]}  Kf2 {[%clk 0:00:03]} 92. Rb1 {[%clk 0:00:06]}  Qd4 {[%clk 0:00:02]} 93. Rd1 {[%clk 0:00:05]}  Qe5 {[%clk 0:00:02]} 94. Rd2+ {[%clk 0:00:05]}  Kf1 {[%clk 0:00:03]} 95. Rd1+ {[%clk 0:00:04]}  Kf2 {[%clk 0:00:02]} 96. Rd2+ {[%clk 0:00:05]}  Kg3 {[%clk 0:00:03]} 97. Rd1 {[%clk 0:00:05]}  Kf4 {[%clk 0:00:04]} 98. Rf1 {[%clk 0:00:05]}  Kg5 {[%clk 0:00:04]} 99. Rg1 {[%clk 0:00:06]}  Qg3 {[%clk 0:00:05]} 100. Rf1 {[%clk 0:00:05]}  Kf6 {[%clk 0:00:04]} 101. Bg4+ {[%clk 0:00:05]}  Ke5 {[%clk 0:00:04]} 102. Bf3 {[%clk 0:00:05]}  Kd4 {[%clk 0:00:05]} 103. Rd1+ {[%clk 0:00:05]}  Ke3 {[%clk 0:00:05]} 104. Rg1 {[%clk 0:00:06]}  Kd2 {[%clk 0:00:06]} 105. Rd1+ {[%clk 0:00:07]}  Kc2 {[%clk 0:00:06]} 106. Rg1 {[%clk 0:00:07]}  Qf2 {[%clk 0:00:06]} 107. Ra1 {[%clk 0:00:08]}  Kb2 {[%clk 0:00:06]} 108. Rd1 {[%clk 0:00:07]}  Kc3 {[%clk 0:00:06]} 109. Rc1+ {[%clk 0:00:07]}  Kd4 {[%clk 0:00:07]} 110. Rd1+ {[%clk 0:00:07]}  Ke5 {[%clk 0:00:07]} 111. Rc1 {[%clk 0:00:08]}  Kf4 {[%clk 0:00:07]} 112. Rg1 {[%clk 0:00:08]}  Kg3 {[%clk 0:00:07]} 113. Rd1 {[%clk 0:00:08]}  Qc5 {[%clk 0:00:07]} 114. Re1 {[%clk 0:00:08]}  Kf2 {[%clk 0:00:02]} 115. Rg1 {[%clk 0:00:08]}  Qe3 {[%clk 0:00:01]} 116. Rd1 {[%clk 0:00:07]}  Qc3 {[%clk 0:00:02]} 117. Rb1 {[%clk 0:00:08]}  Qe5 {[%clk 0:00:02]} 118. Rg1 {[%clk 0:00:07]}  Qe3 {[%clk 0:00:02]} 119. Rd1 {[%clk 0:00:06]}  Qb3 {[%clk 0:00:02]} 120. Rc1 {[%clk 0:00:06]}  Qa4 {[%clk 0:00:02]} 121. Rb1 {[%clk 0:00:05]}  Qa2 {[%clk 0:00:02]} 1/2-1/2


[Site "https://www.chess.com"]

[Event "Titled Tuesday Blitz January 10 Late 2023"]
[White "Dubov, Daniil"]
[Black "Makarian, Rudik"]
[WhiteFideId "24126055"]
[BlackFideId "44105681"]
[WhiteElo "2708"]
[BlackElo "2545"]
[Result "1-0"]
[Round "09"]
[TimeControl "180+2"]
[Date "2023.01.10"]
[WhiteClock "0:01:55"]
[BlackClock "0:00:42"]

1. d4 {[%clk 0:00:00]}  Nf6 {[%clk 0:00:00]} 2. Nf3 {[%clk 0:02:57]}  c5 {[%clk 0:02:56]} 3. d5 {[%clk 0:02:57]}  b5 {[%clk 0:02:55]} 4. c4 {[%clk 0:02:57]}  b4 {[%clk 0:02:56]} 5. Bg5 {[%clk 0:02:54]}  g6 {[%clk 0:02:56]} 6. Nbd2 {[%clk 0:02:52]}  Bg7 {[%clk 0:02:56]} 7. e4 {[%clk 0:02:52]}  d6 {[%clk 0:02:57]} 8. Bd3 {[%clk 0:02:52]}  O-O {[%clk 0:02:54]} 9. O-O {[%clk 0:02:51]}  a5 {[%clk 0:02:54]} 10. Re1 {[%clk 0:02:51]}  Bg4 {[%clk 0:02:51]} 11. h3 {[%clk 0:02:51]}  Bxf3 {[%clk 0:02:22]} 12. Nxf3 {[%clk 0:02:47]}  Nfd7 {[%clk 0:02:22]} 13. Qd2 {[%clk 0:02:48]}  a4 {[%clk 0:02:23]} 14. Rac1 {[%clk 0:02:46]}  a3 {[%clk 0:02:22]} 15. b3 {[%clk 0:02:40]}  Bc3 {[%clk 0:02:19]} 16. Rxc3 {[%clk 0:02:40]}  bxc3 {[%clk 0:02:02]} 17. Qxc3 {[%clk 0:02:38]}  f6 {[%clk 0:02:03]} 18. Bh6 {[%clk 0:02:38]}  Rf7 {[%clk 0:02:03]} 19. Bb1 {[%clk 0:02:38]}  Na6 {[%clk 0:02:04]} 20. h4 {[%clk 0:02:38]}  Nb4 {[%clk 0:02:01]} 21. Nh2 {[%clk 0:02:37]}  Qa5 {[%clk 0:02:01]} 22. Bd2 {[%clk 0:02:34]}  Qc7 {[%clk 0:01:39]} 23. Ng4 {[%clk 0:02:22]}  Rff8 {[%clk 0:01:31]} 24. f4 {[%clk 0:02:18]}  h5 {[%clk 0:01:24]} 25. Nh2 {[%clk 0:02:12]}  Rae8 {[%clk 0:01:09]} 26. Qg3 {[%clk 0:02:10]}  Kh7 {[%clk 0:01:04]} 27. Nf3 {[%clk 0:02:09]}  Rg8 {[%clk 0:00:59]} 28. e5 {[%clk 0:02:01]}  f5 {[%clk 0:00:55]} 29. Ng5+ {[%clk 0:01:55]}  Kh6 {[%clk 0:00:42]} 30. Ne6 {[%clk 0:01:55]} 1-0


[Site "https://www.chess.com"]

[Event "Titled Tuesday Blitz January 10 Late 2023"]
[White "Vachier-Lagrave, Maxime"]
[Black "Bryakin, Mikhail"]
[WhiteFideId "623539"]
[BlackFideId "4165314"]
[WhiteElo "2742"]
[BlackElo "2455"]
[Result "0-1"]
[Round "09"]
[TimeControl "180+2"]
[Date "2023.01.10"]
[WhiteClock "0:00:24"]
[BlackClock "0:00:14"]

1. Nf3 {[%clk 0:00:00]}  Nf6 {[%clk 0:00:00]} 2. g3 {[%clk 0:02:55]}  b5 {[%clk 0:02:58]} 3. c3 {[%clk 0:02:55]}  Bb7 {[%clk 0:02:56]} 4. a4 {[%clk 0:02:51]}  a6 {[%clk 0:02:54]} 5. Bg2 {[%clk 0:02:50]}  e6 {[%clk 0:02:51]} 6. O-O {[%clk 0:02:37]}  c5 {[%clk 0:02:50]} 7. d3 {[%clk 0:02:37]}  d5 {[%clk 0:02:48]} 8. Na3 {[%clk 0:02:37]}  b4 {[%clk 0:02:45]} 9. Nc2 {[%clk 0:02:34]}  a5 {[%clk 0:02:44]} 10. Bf4 {[%clk 0:02:31]}  Nc6 {[%clk 0:02:42]} 11. Re1 {[%clk 0:02:26]}  Be7 {[%clk 0:02:41]} 12. e4 {[%clk 0:02:21]}  O-O {[%clk 0:02:17]} 13. e5 {[%clk 0:02:20]}  Nd7 {[%clk 0:02:17]} 14. h4 {[%clk 0:02:19]}  Re8 {[%clk 0:02:16]} 15. d4 {[%clk 0:02:19]}  cxd4 {[%clk 0:02:12]} 16. cxd4 {[%clk 0:02:18]}  Ba6 {[%clk 0:02:09]} 17. b3 {[%clk 0:02:18]}  Rc8 {[%clk 0:02:07]} 18. Ne3 {[%clk 0:02:14]}  Nf8 {[%clk 0:02:04]} 19. h5 {[%clk 0:02:12]}  h6 {[%clk 0:01:37]} 20. Bh3 {[%clk 0:02:10]}  Nh7 {[%clk 0:01:36]} 21. Ng2 {[%clk 0:02:10]}  Ng5 {[%clk 0:01:36]} 22. Nxg5 {[%clk 0:02:01]}  Bxg5 {[%clk 0:01:35]} 23. Bxg5 {[%clk 0:02:01]}  Qxg5 {[%clk 0:01:35]} 24. Nf4 {[%clk 0:01:59]}  Ne7 {[%clk 0:01:36]} 25. Rc1 {[%clk 0:01:59]}  Nf5 {[%clk 0:01:35]} 26. Qd2 {[%clk 0:01:35]}  Ne7 {[%clk 0:01:32]} 27. Kh2 {[%clk 0:01:31]}  Nf5 {[%clk 0:00:40]} 28. Rc5 {[%clk 0:01:28]}  Rxc5 {[%clk 0:00:32]} 29. dxc5 {[%clk 0:01:19]}  Rc8 {[%clk 0:00:31]} 30. Rc1 {[%clk 0:01:20]}  Ne7 {[%clk 0:00:30]} 31. Qe3 {[%clk 0:01:19]}  Nc6 {[%clk 0:00:30]} 32. Re1 {[%clk 0:01:06]}  Rd8 {[%clk 0:00:28]} 33. Bg2 {[%clk 0:00:57]}  Qf5 {[%clk 0:00:26]} 34. Bf3 {[%clk 0:00:54]}  Qc2 {[%clk 0:00:21]} 35. Rc1 {[%clk 0:00:51]}  Qb2 {[%clk 0:00:21]} 36. Re1 {[%clk 0:00:49]}  Qc3 {[%clk 0:00:21]} 37. g4 {[%clk 0:00:44]}  Qxe3 {[%clk 0:00:20]} 38. Rxe3 {[%clk 0:00:41]}  Nd4 {[%clk 0:00:16]} 39. Bd1 {[%clk 0:00:42]}  Rc8 {[%clk 0:00:16]} 40. g5 {[%clk 0:00:42]}  hxg5 {[%clk 0:00:16]} 41. Nh3 {[%clk 0:00:37]}  Rxc5 {[%clk 0:00:15]} 42. Nxg5 {[%clk 0:00:37]}  Rc3 {[%clk 0:00:14]} 43. Nh3 {[%clk 0:00:37]}  Rxe3 {[%clk 0:00:14]} 44. fxe3 {[%clk 0:00:33]}  Nc6 {[%clk 0:00:14]} 45. Kg3 {[%clk 0:00:34]}  Nxe5 {[%clk 0:00:15]} 46. Nf2 {[%clk 0:00:33]}  Nd3 {[%clk 0:00:16]} 47. Ng4 {[%clk 0:00:33]}  Nc5 {[%clk 0:00:15]} 48. Kf4 {[%clk 0:00:33]}  f6 {[%clk 0:00:15]} 49. h6 {[%clk 0:00:31]}  Bd3 {[%clk 0:00:15]} 50. hxg7 {[%clk 0:00:31]}  Kxg7 {[%clk 0:00:14]} 51. Nf2 {[%clk 0:00:30]}  Bg6 {[%clk 0:00:15]} 52. Kg3 {[%clk 0:00:30]}  Kf7 {[%clk 0:00:14]} 53. Nh3 {[%clk 0:00:30]}  Ke7 {[%clk 0:00:15]} 54. Nf4 {[%clk 0:00:29]}  Bf5 {[%clk 0:00:15]} 55. Ne2 {[%clk 0:00:29]}  e5 {[%clk 0:00:15]} 56. Ng1 {[%clk 0:00:27]}  Kd6 {[%clk 0:00:15]} 57. Nf3 {[%clk 0:00:26]}  Be4 {[%clk 0:00:15]} 58. Nd2 {[%clk 0:00:26]}  Bd3 {[%clk 0:00:16]} 59. Kf2 {[%clk 0:00:26]}  f5 {[%clk 0:00:16]} 60. Ke1 {[%clk 0:00:26]}  Ba6 {[%clk 0:00:16]} 61. Nf3 {[%clk 0:00:26]}  Nd3+ {[%clk 0:00:15]} 62. Kd2 {[%clk 0:00:26]}  Nc5 {[%clk 0:00:15]} 63. Nh4 {[%clk 0:00:26]}  Bd3 {[%clk 0:00:15]} 64. Ng6 {[%clk 0:00:26]}  Be4 {[%clk 0:00:14]} 65. Nh4 {[%clk 0:00:25]}  Ke6 {[%clk 0:00:15]} 66. Ng6 {[%clk 0:00:24]}  Kf6 {[%clk 0:00:12]} 67. Nh4 {[%clk 0:00:23]}  Kg5 {[%clk 0:00:13]} 68. Nf3+ {[%clk 0:00:22]}  Bxf3 {[%clk 0:00:13]} 69. Bxf3 {[%clk 0:00:23]}  Nxb3+ {[%clk 0:00:13]} 70. Kc2 {[%clk 0:00:24]}  Nc5 {[%clk 0:00:13]} 71. Bxd5 {[%clk 0:00:24]}  Nxa4 {[%clk 0:00:14]} 72. Kb3 {[%clk 0:00:24]}  Nb6 {[%clk 0:00:14]} 0-1


[Site "https://www.chess.com"]

[Event "Titled Tuesday Blitz January 10 Late 2023"]
[White "Chigaev, Maksim"]
[Black "Nazari, Arad"]
[WhiteFideId "4108116"]
[BlackFideId "12577324"]
[WhiteElo "2628"]
[BlackElo "2367"]
[Result "1-0"]
[Round "09"]
[TimeControl "180+2"]
[Date "2023.01.10"]
[WhiteClock "0:00:17"]
[BlackClock "0:00:03"]

1. e4 {[%clk 0:00:00]}  c5 {[%clk 0:00:00]} 2. Nf3 {[%clk 0:03:00]}  d6 {[%clk 0:02:59]} 3. d4 {[%clk 0:03:00]}  cxd4 {[%clk 0:02:59]} 4. Nxd4 {[%clk 0:03:00]}  Nf6 {[%clk 0:03:00]} 5. Nc3 {[%clk 0:03:01]}  a6 {[%clk 0:03:01]} 6. Bg5 {[%clk 0:03:02]}  Nbd7 {[%clk 0:03:02]} 7. Bc4 {[%clk 0:03:01]}  e6 {[%clk 0:03:02]} 8. Qd2 {[%clk 0:03:01]}  h6 {[%clk 0:02:56]} 9. Be3 {[%clk 0:02:44]}  Ne5 {[%clk 0:02:39]} 10. Bb3 {[%clk 0:02:41]}  b5 {[%clk 0:02:36]} 11. O-O-O {[%clk 0:02:38]}  Bd7 {[%clk 0:02:30]} 12. f4 {[%clk 0:02:27]}  Neg4 {[%clk 0:01:41]} 13. h3 {[%clk 0:01:52]}  b4 {[%clk 0:01:23]} 14. hxg4 {[%clk 0:01:37]}  bxc3 {[%clk 0:01:07]} 15. Qxc3 {[%clk 0:01:34]}  Nxe4 {[%clk 0:01:07]} 16. Qe1 {[%clk 0:01:34]}  d5 {[%clk 0:01:05]} 17. g5 {[%clk 0:01:33]}  g6 {[%clk 0:00:54]} 18. Kb1 {[%clk 0:01:30]}  a5 {[%clk 0:00:48]} 19. a4 {[%clk 0:01:17]}  Rb8 {[%clk 0:00:37]} 20. g4 {[%clk 0:01:06]}  Bg7 {[%clk 0:00:36]} 21. gxh6 {[%clk 0:00:54]}  Rxh6 {[%clk 0:00:29]} 22. Rxh6 {[%clk 0:00:47]}  Bxh6 {[%clk 0:00:30]} 23. f5 {[%clk 0:00:40]}  Bxe3 {[%clk 0:00:30]} 24. Qxe3 {[%clk 0:00:40]}  Qg5 {[%clk 0:00:26]} 25. Qe1 {[%clk 0:00:37]}  Qxg4 {[%clk 0:00:21]} 26. fxe6 {[%clk 0:00:37]}  fxe6 {[%clk 0:00:18]} 27. Rd3 {[%clk 0:00:36]}  g5 {[%clk 0:00:19]} 28. Qxa5 {[%clk 0:00:32]}  Qg1+ {[%clk 0:00:15]} 29. Ka2 {[%clk 0:00:31]}  g4 {[%clk 0:00:14]} 30. Qc7 {[%clk 0:00:30]}  Rc8 {[%clk 0:00:13]} 31. Qe5 {[%clk 0:00:18]}  Qf2 {[%clk 0:00:13]} 32. Nxe6 {[%clk 0:00:19]}  Nc5 {[%clk 0:00:03]} 33. Nxc5+ {[%clk 0:00:17]} 1-0


[Site "https://www.chess.com"]